fUST/lending_fUST_20240609
["ID","MTS","AMOUNT","RATE_DAILY","PERIOD"]
[328874382,1717938660304,-500.0,0.00027397,2]
[328874383,1717938660315,-500.0,0.00027397,2]
[328874384,1717938660326,-500.0,0.00027397,2]
[328874385,1717938660343,-500.0,0.00027397,2]
[328874386,1717938660352,-500.0,0.00027397,2]
[328874387,1717938660362,-500.0,0.00027397,2]
[328874388,1717938660372,-500.0,0.00027397,2]
[328874389,1717938660386,-500.0,0.00027397,2]
[328874390,1717938660396,-500.0,0.00027397,2]
[328874391,1717938660407,-500.0,0.00027397,2]
[328874392,1717938660417,-500.0,0.00027397,2]
[328874393,1717938660427,-500.0,0.00027397,2]
[328874394,1717938660438,-500.0,0.00027397,2]
[328874395,1717938660448,-500.0,0.00027397,2]
[328874396,1717938660459,-500.0,0.00027397,2]
[328874397,1717938660469,-500.0,0.00027397,2]
[328874398,1717938660479,-423.60292363,0.00027397,2]
[328874399,1717938660490,-3477.8870391,0.00027397,2]
[328874400,1717938660501,-160.0,0.00027397,10]
[328874401,1717938660511,-160.88682893,0.00027397,10]
[328874402,1717938660522,-168.15584837,0.00027397,10]
[328874403,1717938660533,-291.22730584,0.000274,2]
[328874404,1717938660544,-291.22730584,0.00027401,2]
[328874405,1717938660554,-154.51667222,0.0002741,2]
[328874406,1717938660565,-151.78907289,0.00027432,2]
[328874407,1717938660576,-1285.1391028,0.00027439,2]
[328874408,1717938660587,-2313.43618336,0.00027467,2]
[328874409,1717938660597,-43551.88678109,0.000275,2]
[328874410,1717938660607,-19119.00265505,0.000275,4]
[328874411,1717938660618,-1285.1391028,0.00027513,2]
[328874412,1717938660628,-156.95036892,0.0002754,2]
[328874413,1717938660639,-162.15614264,0.00027551,2]
[328874414,1717938660649,-2313.43618336,0.00027551,2]
[328874415,1717938660659,-2313.43618336,0.00027568,2]
[328874416,1717938660671,-2313.43618336,0.00027569,2]
[328874417,1717938660682,-291.22730584,0.00027579,2]
[328874418,1717938660693,-2313.43618336,0.00027593,2]
[328874419,1717938660704,-154.51667222,0.00027638,2]
[328874420,1717938660715,-291.22730584,0.00027665,2]
[328874421,1717938660726,-291.22730584,0.00027703,2]
[328874422,1717938660736,-156.95036892,0.00027777,2]
[328874423,1717938660746,-162.15614264,0.00027794,2]
[328874424,1717938660757,-291.22730584,0.00027845,2]
[328874425,1717938660767,-156.95036892,0.00027857,2]
[328874426,1717938660777,-166.666666,0.00027895,2]
[328874427,1717938660788,-825.19814263,0.000279,2]
[328874428,1717938660799,-156.95036892,0.00027919,2]
[328874429,1717938660809,-156.95036892,0.00027921,2]
[328874430,1717938660820,-156.95036892,0.00027932,2]
[328874431,1717938660831,-2313.43618336,0.00027932,2]
[328874432,1717938660842,-29044.21819081,0.0002799,2]
[328874433,1717938660852,-294082.78781448,0.0002799,15]
[328874434,1717938660863,-4050.9703491,0.0002799,2]
[328874435,1717938660874,-154.95351395,0.00028,2]
[328874436,1717938660885,-253.78605257,0.00028,2]
[328874437,1717938660895,-161.78698805,0.00028,2]
[328874438,1717938660905,-1000.0,0.00028,28]
[328874439,1717938660916,-10000.0,0.00028,30]
[328874440,1717938660926,-604.14201652,0.00028,2]
[328874441,1717938660937,-7593.31,0.00028,30]
[328874442,1717938660948,-29107.90047759,0.00028,10]
[328874443,1717938660959,-154.51667222,0.00028011,2]
[328874444,1717938660970,-1285.1391028,0.00028013,2]
[328874445,1717938660980,-162.15614264,0.00028075,2]
[328874446,1717938660990,-156.95036892,0.00028075,2]
[328874447,1717938661000,-1285.1391028,0.00028075,2]
[328874448,1717938661011,-156.95036892,0.00028076,2]
[328874449,1717938661022,-291.22730584,0.00028094,2]
[328874450,1717938661033,-1285.1391028,0.00028123,2]
[328874451,1717938661045,-2770.57518313,0.00028123,7]
[328874452,1717938661055,-2022.94,0.00028209,6]
[328874453,1717938661066,-156.95036892,0.00028246,2]
[328874454,1717938661077,-154.51667222,0.00028268,2]
[328874455,1717938661087,-2598.18,0.00028291,6]
[328874456,1717938661097,-282.63410178,0.00028318,2]
[328874457,1717938661107,-151.78907289,0.00028338,2]
[328874458,1717938661118,-2313.43618336,0.00028381,2]
[328874459,1717938661129,-156.95036892,0.00028394,2]
[328874460,1717938661139,-154.51667222,0.00028409,2]
[328874461,1717938661151,-204.79128228,0.00028488,2]
[328874462,1717938661163,-164.34876548,0.00028489,2]
[328874463,1717938661173,-201.50141898,0.00028498,2]
[328874464,1717938661184,-156.95036892,0.00028498,2]
[328874465,1717938661195,-156.95036892,0.00028515,2]
[328874466,1717938661205,-291.22730584,0.00028523,2]
[328874467,1717938661217,-291.22730584,0.00028537,2]
[328874468,1717938661230,-1285.1391028,0.00028589,2]
[328874469,1717938661241,-291.22730584,0.000286,2]
[328874470,1717938661251,-1285.1391028,0.00028602,2]
[328874471,1717938661262,-1285.1391028,0.00028623,2]
[328874472,1717938661273,-156.95036892,0.00028643,2]
[328874473,1717938661284,-291.22730584,0.00028668,2]
[328874474,1717938661295,-303.2,0.0002868,35]
[328874475,1717938661306,-260.76,0.0002868,35]
[328874476,1717938661317,-295.0,0.0002869,35]
[328874477,1717938661328,-157.0,0.0002869,35]
[328874478,1717938661337,-259.0,0.0002869,35]
[328874479,1717938661348,-2313.43618336,0.00028694,2]
[328874480,1717938661358,-2313.43618336,0.00028757,2]
[328874481,1717938661368,-10000.0,0.00028767,90]
[328874482,1717938661379,-189479.13470659,0.0002877,2]
[328874483,1717938661390,-162.1,0.0002878,35]
[328874484,1717938661402,-347.13,0.0002878,35]
[328874485,1717938661412,-156.95036892,0.00028781,2]
[328874486,1717938661422,-294.89,0.0002879,35]
[328874487,1717938661433,-342.0,0.0002879,35]
[328874488,1717938661443,-2313.43618336,0.00028792,2]
[328874489,1717938661455,-154.51667222,0.00028798,2]
[328874490,1717938661466,-88339.7918287,0.00028799,2]
[328874491,1717938661478,-300.0,0.00028799,2]
[328874492,1717938661489,-785.13110959,0.00028799,2]
[328874493,1717938661501,-1199.85462972,0.00028799,14]
[328874494,1717938661512,-508.75742043,0.00028799,2]
[328874495,1717938661523,-287.95929276,0.00028799,2]
[328874496,1717938661535,-4106.2902264,0.00028799,2]
[328874497,1717938661549,-317.03309244,0.00028799,2]
[328874498,1717938661560,-9987.87571101,0.00028799,2]
[328874499,1717938661571,-1028.98141081,0.00028799,10]
[328874500,1717938661581,-152.73823142,0.00028799,2]
[328874501,1717938661591,-432.81627625,0.00028799,2]
[328874502,1717938661602,-28564.84749327,0.00028799,2]
[328874503,1717938661613,-3025.79244937,0.00028799,2]
[328874504,1717938661624,-1008.04518548,0.00028799,2]
[328874505,1717938661636,-2909.06397966,0.00028799,7]
[328874506,1717938661647,-226.46273023,0.00028799,10]
[328874507,1717938661658,-85486.00329209,0.00028799,7]
[328874508,1717938661669,-13265.0,0.00028799,2]
[328874509,1717938661681,-3609.30556744,0.00028799,2]
[328874510,1717938661692,-664.00766691,0.00028799,2]
[328874511,1717938661703,-27038.505006,0.00028799,2]
[328874512,1717938661713,-25658.5560131,0.00028799,7]
[328874513,1717938661724,-1000.0,0.00028799,90]
[328874514,1717938661736,-1000.0,0.00028799,90]
[328874515,1717938661747,-1000.0,0.00028799,120]
[328874516,1717938661758,-1000.0,0.00028799,120]
[328874517,1717938661769,-160.0,0.00028799,30]
[328874518,1717938661779,-1894.25962937,0.00028799,120]
[328874519,1717938661789,-508.61431716,0.00028799,30]
[328874520,1717938661800,-1326.46656865,0.00028799,30]
[328874521,1717938661810,-653.0,0.00028799,120]
[328874522,1717938661820,-847.81878556,0.00028799,120]
[328874523,1717938661829,-679.10332943,0.00028799,120]
[328874524,1717938661839,-859.99598714,0.00028799,120]
[328874525,1717938661849,-1167.52904871,0.00028799,30]
[328874526,1717938661859,-847.45938747,0.00028799,120]
[328874527,1717938661868,-416.25643008,0.00028799,30]
[328874528,1717938661880,-2000.0,0.00028799,120]
[328874529,1717938661890,-229.02925424,0.00028799,30]
[328874530,1717938661902,-221.02605722,0.00028799,120]
[328874531,1717938661912,-1016.70393547,0.00028799,120]
[328874532,1717938661922,-1698.57444893,0.00028799,30]
[328874533,1717938661932,-194.12645353,0.00028799,120]
[328874534,1717938661942,-2698.12473008,0.00028799,90]
[328874535,1717938661952,-1043.87174956,0.00028799,120]
[328874536,1717938661961,-998.26031902,0.00028799,120]
[328874537,1717938661971,-6595076.41294147,0.00028799,120]
[328874538,1717938662048,-9519.99999522,0.00028799,120]
[328874539,1717938662060,-303.19414368,0.00028799,120]
[328874565,1717939250106,154.98450155,9.999e-05,2]
[328874566,1717939561253,530.20911563,9.999e-05,2]
[328874657,1717939833691,-154.98450155,0.00014524,2]
[328874660,1717939833702,-115.56680325,0.00014525,2]
[328874663,1717939833714,-223.95186085,0.00014525,2]
[328874666,1717939833724,-165.8995785,0.00014771,2]
[328874669,1717939833734,-2642.54173153,0.0001501,2]
[328874672,1717939833744,-956.0015212,0.00015011,2]
[328874675,1717939833754,-24900.0,0.00015529,2]
[328874678,1717939833764,-7208.44979576,0.00016436,2]
[328874681,1717939833774,-166.666666,0.00016986,2]
[328874684,1717939833786,-500.0,0.00017999,2]
[328874687,1717939833799,-6337.54488796,0.00018,2]
[328874910,1717939839635,-929.89553523,0.00018,2]
[328874912,1717939839650,-1141.98066768,0.00018,2]
[328874914,1717939839663,-213.0409624,0.00018,2]
[328874916,1717939839674,-500.0,0.00018273,2]
[328874918,1717939839686,-500.0,0.00018547,2]
[328874920,1717939839703,-306.02,0.00018821,2]
[328874922,1717939839714,-218.64317381,0.000189,2]
[328874925,1717939839728,-333.5927164,0.000189,2]
[328875110,1717939844741,-461.67458628,0.000189,2]
[328875112,1717939844752,-500.0,0.00018977,2]
[328875114,1717939844763,-163.07446836,0.00019,2]
[328875116,1717939844773,-894.69628476,0.00019174,2]
[328875118,1717939844783,-158.99250424,0.00019176,2]
[328875120,1717939844796,-252.32412823,0.00019176,2]
[328875122,1717939844806,-156.91563212,0.00019176,2]
[328875124,1717939844816,-208.30314043,0.00019176,2]
[328875126,1717939844826,-164.57151092,0.00019176,2]
[328875128,1717939844837,-309.9380124,0.00019176,2]
[328875130,1717939844848,-309.9380124,0.00019176,2]
[328875132,1717939844858,-232.24962985,0.00019176,2]
[328875140,1717939844930,-1888.22081675,0.00019176,2]
[328875142,1717939844940,-515.43295454,0.00019176,2]
[328875144,1717939844951,-1441.62192764,0.00019176,2]
[328875146,1717939844961,-157.66978397,0.00019176,2]
[328875148,1717939844971,-1281.50835311,0.00019176,2]
[328875150,1717939844982,-35.70406205,0.00019176,2]
[328875465,1717939848313,-494.18225368,0.00019176,2]
[328875467,1717939848323,-1019.89967988,0.00019177,2]
[328875489,1717939848536,-7476.16408338,0.00019177,2]
[328875763,1717940678555,809.5,0.00010959,2]
[328875764,1717940794431,1587.87704606,0.00016757,7]
[328875768,1717940853605,793.93852303,0.00016757,7]
[328875769,1717940914573,396.96926151,0.00016757,7]
[328875771,1717940973753,198.48463076,0.00016757,7]
[328875784,1717941033227,-303.9746273,0.00016381,2]
[328875785,1717941033240,-197.35780698,0.00016657,2]
[328875786,1717941033250,-59575.21530755,0.00016756,2]
[328875787,1717941033260,-286.64405799,0.00016757,2]
[328875788,1717941033272,-9440.90332922,0.00016757,2]
[328875791,1717941033729,198.48463075,0.00016757,7]
[328875896,1717941044428,-2396.7,0.00016757,2]
[328875899,1717941045175,-10556.03243778,0.00016757,2]
[328875924,1717941047714,-2506.364233,0.00016757,2]
[328875925,1717941047725,-166.666666,0.00016986,2]
[328875926,1717941047735,-500.0,0.00017756,2]
[328875927,1717941047745,-1405.30359528,0.00018,5]
[328875928,1717941047759,-9613.16348507,0.00018,5]
[328875929,1717941047770,-6144.78559282,0.00018,2]
[328875930,1717941586495,272.51996637,9.999e-05,2]
[328875931,1717941588873,154.98450155,9.999e-05,2]
[328875986,1717942234086,-154.98450155,0.00014885,2]
[328875987,1717942234097,-240.9537092,0.00014886,2]
[328875988,1717942234108,-2642.54173153,0.00015639,2]
[328875989,1717942234118,-9588.50838645,0.0001564,2]
[328875990,1717942234128,-1234.1224539,0.0001565,2]
[328875991,1717942234138,-22415.1726713,0.00015919,2]
[328875992,1717942234148,-153.16855129,0.00015947,2]
[328875993,1717942234158,-4234.52892688,0.00016008,2]
[328875998,1717942239877,-2147.73455586,0.00016008,2]
[328875999,1717942239890,-10934.77274788,0.00016008,2]
[328876000,1717942239903,-2224.72024922,0.00016008,2]
[328876002,1717942239916,-5358.24352016,0.00016008,2]
[328876003,1717942239926,-6073.0733073,0.00016047,2]
[328876004,1717942239937,-190.18117704,0.00016228,2]
[328876005,1717942239946,-166.666666,0.00016986,2]
[328876006,1717942239956,-500.0,0.00017448,2]
[328876007,1717942239966,-4238.41830585,0.00017596,2]
[328876008,1717942239977,-500.0,0.00017722,2]
[328876009,1717942239988,-500.0,0.00017996,2]
[328876010,1717942239998,-286.64405799,0.00018,2]
[328876011,1717942240010,-1355.02163008,0.00018,2]
[328876012,1717942240020,-500.0,0.0001827,2]
[328876013,1717942240030,-500.0,0.00018544,2]
[328876014,1717942240041,-500.0,0.00018818,2]
[328876015,1717942240051,-675.94031766,0.000189,2]
[328876016,1717942240062,-163.07446836,0.00019,2]
[328876017,1717942240220,-500.0,0.00019092,2]
[328876018,1717942240233,-7267.44042319,0.00019175,2]
[328876019,1717942240245,-156.77289813,0.00019176,2]
[328876020,1717942240256,-5191.38795817,0.00019176,2]
[328876021,1717942240267,-10811.45879408,0.00019177,2]
[328876022,1717942240278,-7533.43427528,0.00019178,7]
[328876023,1717942240289,-500.0,0.00019178,2]
[328876024,1717942240300,-500.0,0.00019178,2]
[328876025,1717942240311,-200.0,0.00019178,2]
[328876026,1717942240321,-500.0,0.00019178,2]
[328876027,1717942240331,-500.0,0.00019178,2]
[328876028,1717942240341,-288.25845685,0.00019178,2]
[328876029,1717942240352,-500.0,0.00019178,2]
[328876030,1717942240363,-500.0,0.00019178,2]
[328876031,1717942240373,-552.821063,0.00019178,2]
[328876032,1717942240384,-500.0,0.00019178,2]
[328876033,1717942240394,-500.0,0.00019178,2]
[328876034,1717942240404,-500.0,0.00019178,2]
[328876035,1717942240414,-500.0,0.00019178,2]
[328876036,1717942240424,-500.0,0.00019178,2]
[328876037,1717942240435,-500.0,0.00019178,2]
[328876038,1717942240445,-178.87439923,0.00019178,2]
[328876039,1717942240455,-500.0,0.00019178,2]
[328876040,1717942240466,-500.0,0.00019178,2]
[328876041,1717942240476,-500.0,0.00019178,2]
[328876042,1717942240487,-500.0,0.00019178,2]
[328876043,1717942240497,-255.92232808,0.00019178,2]
[328876044,1717942240507,-500.0,0.00019178,2]
[328876045,1717942240517,-634.3741576,0.00019178,2]
[328876046,1717942240528,-246.43172535,0.00019178,2]
[328876047,1717942240538,-500.0,0.00019178,2]
[328876048,1717942240548,-500.0,0.00019178,2]
[328876049,1717942240562,-500.0,0.00019178,2]
[328876050,1717942240572,-500.0,0.00019178,2]
[328876051,1717942240582,-500.0,0.00019178,2]
[328876052,1717942240592,-500.0,0.00019178,2]
[328876053,1717942240603,-500.0,0.00019178,2]
[328876054,1717942240613,-635.72031065,0.00019178,2]
[328876055,1717942240623,-500.0,0.00019178,2]
[328876056,1717942240637,-500.0,0.00019178,2]
[328876057,1717942240648,-500.0,0.00019178,2]
[328876058,1717942240658,-52.73974183,0.00019178,2]
[328876059,1717942240671,-447.26025817,0.00019178,2]
[328876060,1717942240681,-500.0,0.00019178,2]
[328876061,1717942240691,-128.01318986,0.00019178,2]
[328876062,1717942240704,-371.98681014,0.00019178,2]
[328876063,1717942240715,-193.91789399,0.00019178,2]
[328876064,1717942240728,-306.08210601,0.00019178,2]
[328876065,1717942240739,-315.2306738,0.00019178,2]
[328876201,1717942245068,-88.50218769,0.00019178,2]
[328876202,1717942245080,-222.70326444,0.00019178,2]
[328876203,1717942245254,-277.29673556,0.00019178,2]
[328876204,1717942245265,-625.99032902,0.00019178,2]
[328876205,1717942245276,-500.0,0.00019178,2]
[328876208,1717942245286,-500.0,0.00019178,2]
[328876209,1717942245297,-500.0,0.00019178,2]
[328876211,1717942245308,-236.79274825,0.00019178,2]
[328876243,1717942932181,272.51996637,9.999e-05,2]
[328876250,1717943043205,208.36805602,9.999e-05,2]
[328876256,1717943186744,1281.8802491,9.999e-05,2]
[328876270,1717943252409,252.39025362,9.999e-05,2]
[328876317,1717943433528,-154.98450155,0.00014999,2]
[328876319,1717943433539,-271.28404199,0.00015,2]
[328876321,1717943433549,-190.49958795,0.0001651,2]
[328876323,1717943433559,-1232.46484652,0.00016511,2]
[328876325,1717943433572,-438.20017026,0.00016511,2]
[328876336,1717943439901,-3492.48452683,0.00016511,2]
[328876337,1717943439916,-1995.27087824,0.00016511,2]
[328876338,1717943439929,-333.95878176,0.00016511,2]
[328876351,1717943446379,-999.9933705,0.00016511,2]
[328876470,1717943740539,154.98450155,9.999e-05,2]
[328876477,1717943942852,-154.98450155,0.00016508,2]
[328876478,1717943942875,-275.59426284,0.00016509,2]
[328876479,1717943942896,-11630.00123561,0.0001651,2]
[328876495,1717944024480,686.31644292,9.999e-05,2]
[328876501,1717944071920,7778.70056604,9.999e-05,2]
[328876517,1717944193413,526.42,0.00010959,2]
[328876518,1717944254718,2642.54173153,9.999e-05,2]
[328876523,1717944440978,157.71613158,9.999e-05,2]
[328876549,1717944551568,317.46618636,9.999e-05,2]
[328876639,1717944633445,-223.9518608,0.00015183,2]
[328876641,1717944633455,-956.0015212,0.00015712,2]
[328876643,1717944633465,-283.50298031,0.00015985,2]
[328876645,1717944633477,-7956.56966083,0.00015985,2]
[328876648,1717944633490,-5541.7047867,0.00015985,2]
[328876650,1717944633502,-5525.7451295,0.00015985,2]
[328876652,1717944633512,-24900.0,0.00015986,2]
[328876654,1717944633522,-496.20123015,0.00016072,2]
[328876656,1717944633532,-182.71593405,0.00016172,2]
[328876658,1717944633543,-4238.41830585,0.00016323,2]
[328876660,1717944633553,-15284.29507201,0.0001651,2]
[328876662,1717944633563,-182.71593402,0.00016884,2]
[328876664,1717944633573,-4391.48,0.00016928,2]
[328876666,1717944633583,-500.0,0.00016928,2]
[328876668,1717944633593,-166.666666,0.00016986,2]
[328876670,1717944633603,-4391.48,0.00017202,2]
[328876672,1717944633613,-4391.48,0.00017476,2]
[328876674,1717944633623,-182.71593402,0.00017596,2]
[328876676,1717944633632,-4391.48,0.0001775,2]
[328876678,1717944633642,-496.2012301,0.00017857,2]
[328876680,1717944633652,-3549.83266658,0.00017993,2]
[328876798,1717944640404,-1385.7141859,0.00017993,2]
[328876801,1717944640421,-5142.81737777,0.00017993,2]
[328876803,1717944640431,-154.287729,0.00017993,2]
[328876805,1717944640441,-151.0,0.00017993,2]
[328876807,1717944640451,-151.0,0.00017993,2]
[328876809,1717944640461,-199.659694,0.00017993,2]
[328876811,1717944640472,-199.659694,0.00017993,2]
[328876813,1717944640482,-557.046648,0.00017993,2]
[328876815,1717944640492,-557.046648,0.00017993,2]
[328876817,1717944640502,-439.367621,0.00017993,2]
[328876819,1717944640513,-439.367621,0.00017993,2]
[328876821,1717944640523,-324.89901,0.00017993,2]
[328876823,1717944640534,-324.89901,0.00017993,2]
[328876825,1717944640544,-1000.0,0.00017993,2]
[328876827,1717944640555,-1000.0,0.00017993,2]
[328876829,1717944640566,-1000.0,0.00017993,2]
[328876832,1717944640576,-1000.0,0.00017993,2]
[328876834,1717944640590,-1000.0,0.00017993,2]
[328876836,1717944640601,-1000.0,0.00017993,2]
[328876838,1717944640612,-1000.0,0.00017993,2]
[328876840,1717944640622,-1000.0,0.00017993,2]
[328876842,1717944640632,-1000.0,0.00017993,2]
[328876844,1717944640642,-1000.0,0.00017993,2]
[328876846,1717944640654,-1000.0,0.00017993,2]
[328876848,1717944640665,-1000.0,0.00017993,2]
[328876850,1717944640675,-1000.0,0.00017993,2]
[328876852,1717944640686,-1000.0,0.00017993,2]
[328876854,1717944640697,-1000.0,0.00017993,2]
[328876856,1717944640707,-1000.0,0.00017993,2]
[328876857,1717944640721,-1000.0,0.00017993,2]
[328876860,1717944640732,-1000.0,0.00017993,2]
[328876861,1717944640742,-1000.0,0.00017993,2]
[328876863,1717944640754,-1000.0,0.00017993,2]
[328876866,1717944640764,-1000.0,0.00017993,2]
[328876867,1717944640774,-1000.0,0.00017993,2]
[328876870,1717944640785,-1000.0,0.00017993,2]
[328876872,1717944640798,-1000.0,0.00017993,2]
[328876873,1717944640809,-1000.0,0.00017993,2]
[328876875,1717944640819,-1000.0,0.00017993,2]
[328876878,1717944640831,-1000.0,0.00017993,2]
[328876880,1717944640840,-156.06432,0.00017993,2]
[328876881,1717944640851,-287.983729,0.00017993,2]
[328876883,1717944640861,-287.983729,0.00017993,2]
[328876886,1717944640871,-287.983729,0.00017993,2]
[328876888,1717944640881,-287.983729,0.00017993,2]
[328876889,1717944640892,-287.983729,0.00017993,2]
[328876892,1717944640904,-287.983729,0.00017993,2]
[328876894,1717944640915,-151.0,0.00017993,2]
[328876896,1717944640925,-151.0,0.00017993,2]
[328876898,1717944640935,-151.0,0.00017993,2]
[328876899,1717944640945,-151.0,0.00017993,2]
[328876902,1717944640955,-164.722608,0.00017993,2]
[328876904,1717944640966,-347.864927,0.00017993,2]
[328876906,1717944640976,-52.74362004,0.00017993,2]
[328876908,1717944640990,-295.12130696,0.00017993,2]
[328876910,1717944641000,-347.864927,0.00017993,2]
[328876912,1717944641010,-347.864927,0.00017993,2]
[328876914,1717944641020,-347.864927,0.00017993,2]
[328876916,1717944641032,-347.864927,0.00017993,2]
[328876918,1717944641042,-151.0,0.00017993,2]
[328876920,1717944641052,-151.0,0.00017993,2]
[328876922,1717944641062,-151.0,0.00017993,2]
[328876924,1717944641072,-178.8710678,0.00017999,2]
[328876926,1717944641085,-1799.53972863,0.00017999,2]
[328877222,1717944644665,-5526.7099617,0.00017999,2]
[328877224,1717944644677,-151.0,0.00017999,2]
[328877226,1717944644687,-266.56363,0.00017999,2]
[328877228,1717944644697,-266.56363,0.00017999,2]
[328877230,1717944644710,-177.984983,0.00017999,2]
[328877231,1717944644721,-177.984983,0.00017999,2]
[328877232,1717944644731,-151.0,0.00017999,2]
[328877233,1717944644740,-151.807683,0.00017999,2]
[328877234,1717944644750,-151.0,0.00017999,2]
[328877235,1717944644762,-287.983729,0.00017999,2]
[328877236,1717944644772,-287.983729,0.00017999,2]
[328877237,1717944644783,-151.0,0.00017999,2]
[328877238,1717944644795,-347.864927,0.00017999,2]
[328877239,1717944644805,-347.864927,0.00017999,2]
[328877240,1717944644815,-199.659694,0.00018,2]
[328877241,1717944644824,-199.659694,0.00018,2]
[328877242,1717944644834,-557.046648,0.00018,2]
[328877244,1717944644844,-557.046648,0.00018,2]
[328877246,1717944644853,-439.367621,0.00018,2]
[328877247,1717944644863,-439.367621,0.00018,2]
[328877249,1717944644873,-324.89901,0.00018,2]
[328877251,1717944644883,-324.89901,0.00018,2]
[328877253,1717944644893,-1355.02163008,0.00018022,2]
[328877255,1717944644903,-151.0,0.00018023,2]
[328877258,1717944644915,-151.0,0.00018023,2]
[328877260,1717944644925,-4391.48,0.00018024,2]
[328877262,1717944644935,-177.984983,0.00018298,2]
[328877264,1717944644947,-177.984983,0.00018298,2]
[328877265,1717944644957,-151.0,0.00018298,2]
[328877268,1717944644967,-151.0,0.00018298,2]
[328877270,1717944644979,-4391.48,0.00018298,2]
[328877272,1717944644990,-287.983729,0.00018298,2]
[328877274,1717944645000,-287.983729,0.00018298,2]
[328877276,1717944645010,-151.0,0.00018298,2]
[328877277,1717944645020,-347.864927,0.00018298,2]
[328877280,1717944645031,-347.864927,0.00018298,2]
[328877281,1717944645041,-182.71593402,0.00018308,2]
[328877283,1717944645051,-151.0,0.00018552,2]
[328877286,1717944645062,-266.56363,0.00018552,2]
[328877288,1717944645073,-266.56363,0.00018552,2]
[328877290,1717944645083,-151.0,0.00018552,2]
[328877292,1717944645093,-151.0,0.00018552,2]
[328877294,1717944645103,-199.659694,0.00018552,2]
[328877295,1717944645114,-199.659694,0.00018552,2]
[328877298,1717944645125,-557.046648,0.00018552,2]
[328877300,1717944645135,-557.046648,0.00018552,2]
[328877302,1717944645145,-439.367621,0.00018552,2]
[328877304,1717944645155,-439.367621,0.00018552,2]
[328877306,1717944645169,-324.89901,0.00018552,2]
[328877308,1717944645179,-324.89901,0.00018552,2]
[328877310,1717944645189,-151.0,0.00018572,2]
[328877312,1717944645198,-266.56363,0.00018572,2]
[328877314,1717944645208,-266.56363,0.00018572,2]
[328877316,1717944645218,-266.56363,0.00018572,2]
[328877318,1717944645227,-266.56363,0.00018572,2]
[328877319,1717944645237,-177.984983,0.00018572,2]
[328877321,1717944645247,-177.984983,0.00018572,2]
[328877323,1717944645257,-177.984983,0.00018572,2]
[328877325,1717944645266,-177.984983,0.00018572,2]
[328877327,1717944645277,-154.631155,0.00018572,2]
[328877329,1717944645287,-151.0,0.00018572,2]
[328877331,1717944645296,-151.0,0.00018572,2]
[328877333,1717944645307,-151.0,0.00018572,2]
[328877335,1717944645317,-151.0,0.00018572,2]
[328877337,1717944645327,-151.0,0.00018572,2]
[328877339,1717944645336,-224.171569,0.00018572,2]
[328877341,1717944645346,-199.659694,0.00018572,2]
[328877343,1717944645356,-199.659694,0.00018572,2]
[328877345,1717944645366,-199.659694,0.00018572,2]
[328877347,1717944645375,-199.659694,0.00018572,2]
[328877349,1717944645384,-199.659694,0.00018572,2]
[328877351,1717944645394,-199.659694,0.00018572,2]
[328877353,1717944645404,-557.046648,0.00018572,2]
[328877355,1717944645415,-557.046648,0.00018572,2]
[328877358,1717944645424,-557.046648,0.00018572,2]
[328877360,1717944645434,-557.046648,0.00018572,2]
[328877362,1717944645444,-557.046648,0.00018572,2]
[328877364,1717944645454,-557.046648,0.00018572,2]
[328877366,1717944645465,-4391.48,0.00018572,2]
[328877368,1717944645476,-439.367621,0.00018572,2]
[328877370,1717944645486,-439.367621,0.00018572,2]
[328877372,1717944645497,-439.367621,0.00018572,2]
[328877374,1717944645507,-439.367621,0.00018572,2]
[328877376,1717944645518,-439.367621,0.00018572,2]
[328877379,1717944645528,-439.367621,0.00018572,2]
[328877381,1717944645539,-324.89901,0.00018572,2]
[328877382,1717944645548,-324.89901,0.00018572,2]
[328877385,1717944645559,-324.89901,0.00018572,2]